bitfinex-derivatives/quotes_BTCF0:USTF0_20251208
["timestamp","ask_amount","ask_price","bid_price","bid_amount"]
[1765168552281,0.12326,91411.0,91399.0,0.50868]
[1765168552282,0.12326,91410.0,91405.0,0.07818207]
[1765168552474,0.12326,91407.0,91401.0,0.36096409]
[1765168553378,0.1342002,91407.0,91406.0,0.00435151]
[1765168553587,0.4950002,91407.0,91406.0,0.00435151]
[1765168554078,0.4950002,91407.0,91406.0,0.00035151]
[1765168554282,0.4950002,91407.0,91406.0,0.00435151]
[1765168554480,0.12326,91386.0,91385.0,0.0109428]
[1765168554677,0.1612,91384.0,91380.0,0.19706742]
[1765168554882,0.1612,91384.0,91380.0,0.0109434]
[1765168555081,0.1612,91384.0,91383.0,0.37479448]
[1765168555378,0.16128099,91384.0,91383.0,0.37479448]
[1765168555577,0.16128099,91384.0,91383.0,0.44196448]
[1765168555885,0.16128099,91384.0,91383.0,0.45396448]
[1765168556187,0.16128099,91384.0,91383.0,0.38679448]
[1765168556571,0.16228099,91384.0,91383.0,0.03199448]
[1765168559280,0.16228099,91384.0,91383.0,0.09916448]
[1765168559588,0.16228099,91384.0,91383.0,0.15856448]
[1765168560487,0.16228099,91384.0,91383.0,0.018]
[1765168566495,0.16228099,91384.0,91383.0,0.13519]
[1765168567192,0.16228099,91384.0,91383.0,0.018]
[1765168567694,0.16228099,91384.0,91383.0,0.13519]
[1765168568387,0.16228099,91384.0,91383.0,0.018]
[1765168568990,0.16228099,91384.0,91383.0,0.13519]
[1765168569185,0.17322399,91384.0,91383.0,0.018]
[1765168569386,0.17322399,91384.0,91383.0,0.005635]
[1765168569792,0.1250641,91375.0,91374.0,0.36090988]
[1765168570193,0.1250641,91375.0,91374.0,0.00010988]
[1765168571093,0.1250641,91375.0,91374.0,0.00710988]
[1765168571301,0.1260641,91375.0,91374.0,0.00710988]
[1765168571497,0.1260641,91375.0,91374.0,0.02210988]
[1765168573987,0.11512,91375.0,91374.0,0.02210988]
[1765168574191,0.1260641,91375.0,91374.0,0.02210988]
[1765168574398,0.11641,91361.0,91360.0,0.2980457]
[1765168574598,0.11641,91361.0,91357.0,0.08054531]
[1765168574599,0.11648757,91361.0,91357.0,0.08054531]
[1765168574902,0.11648757,91361.0,91332.0,0.07818207]
[1765168574903,0.03293,91357.0,91352.0,0.1225768]
[1765168575093,0.11641,91348.0,91347.0,0.11163]
[1765168575802,0.11641,91348.0,91347.0,0.12501643]
[1765168576498,0.51030418,91357.0,91356.0,0.11163]
[1765168576890,0.51030418,91357.0,91356.0,0.1225764]
[1765168577088,0.51030418,91357.0,91356.0,0.0670564]
[1765168577306,0.51030418,91357.0,91356.0,0.1225764]
[1765168577802,0.53030418,91357.0,91356.0,0.0680564]
[1765168578002,0.53030418,91357.0,91356.0,0.001]
[1765168578194,0.11641,91348.0,91347.0,0.001]
[1765168578402,0.11641,91327.0,91326.0,0.00027375]
[1765168578905,0.11641,91316.0,91315.0,0.05611]
[1765168579110,0.11641,91311.0,91310.0,0.2980457]
[1765168579405,0.11651516,91311.0,91310.0,0.11163]
[1765168579706,0.05988516,91311.0,91310.0,0.11163]
[1765168580005,0.00010516,91311.0,91310.0,0.1252194]
[1765168580608,0.13351516,91311.0,91310.0,0.1262194]
[1765168580797,0.01710516,91311.0,91310.0,0.1272194]
[1765168581110,0.00010516,91311.0,91310.0,0.1262194]
[1765168581291,0.13351516,91311.0,91310.0,0.1272194]
[1765168582601,0.11651516,91311.0,91310.0,0.1262194]
[1765168582809,0.13451516,91311.0,91310.0,0.1262194]
[1765168583105,0.13451516,91311.0,91310.0,0.1272194]
[1765168583507,0.07788516,91311.0,91310.0,0.1272194]
[1765168583896,0.05988516,91311.0,91310.0,0.1262194]
[1765168584103,0.07788516,91311.0,91310.0,0.1272194]
[1765168584692,0.01810516,91311.0,91310.0,0.1272194]
[1765168585399,0.01810516,91311.0,91310.0,0.1262194]
[1765168585601,0.01810516,91311.0,91310.0,0.1272194]
[1765168585992,0.07788516,91311.0,91310.0,0.1262194]
[1765168586192,0.07788516,91311.0,91310.0,0.1272194]
[1765168586399,0.13451516,91311.0,91310.0,0.0155894]
[1765168586616,0.11651516,91311.0,91310.0,0.0145894]
[1765168586908,0.13451516,91311.0,91310.0,0.0155894]
[1765168587206,0.13451516,91311.0,91310.0,0.1272194]
[1765168588406,0.13451516,91311.0,91310.0,0.0716994]
[1765168589007,0.13451516,91311.0,91310.0,0.1272194]
[1765168589306,0.13451516,91311.0,91310.0,0.0716994]
[1765168590704,0.13451516,91311.0,91310.0,0.1272194]
[1765168593199,0.13451516,91311.0,91310.0,0.0155894]
[1765168593613,0.13451516,91311.0,91310.0,0.1272194]
[1765168594614,0.12451516,91311.0,91310.0,0.1272194]
[1765168595508,0.12457711,91311.0,91310.0,0.1272194]
[1765168595714,0.01806195,91311.0,91310.0,0.1272194]
[1765168596505,0.07784195,91311.0,91310.0,0.1272194]
[1765168596709,0.01806195,91311.0,91310.0,0.1272194]
[1765168597512,0.07784195,91311.0,91310.0,0.1272194]
[1765168598916,0.13447195,91311.0,91310.0,0.1272194]
[1765168600113,0.13447195,91311.0,91310.0,0.0155894]
[1765168600317,0.13447195,91311.0,91310.0,0.002]
[1765168602720,0.13447195,91311.0,91310.0,0.13278]
[1765168603317,0.07784195,91311.0,91310.0,0.13278]
[1765168604418,0.15307195,91311.0,91310.0,0.13278]
[1765168605023,0.07559195,91311.0,91310.0,0.13278]
[1765168605524,0.15082195,91311.0,91310.0,0.13278]
[1765168606115,0.07559195,91311.0,91310.0,0.13278]
[1765168607022,0.15082195,91311.0,91310.0,0.13278]
[1765168607220,0.01806195,91311.0,91310.0,0.13278]
[1765168608225,0.07559195,91311.0,91310.0,0.13278]
[1765168608922,0.01806195,91311.0,91310.0,0.13278]
[1765168611119,0.01806195,91311.0,91310.0,0.49358]
[1765168611325,0.01806195,91311.0,91310.0,0.57176207]
[1765168611524,0.01806195,91311.0,91310.0,0.57192924]
[1765168612328,0.01806195,91311.0,91310.0,0.49358]
[1765168613228,0.49356,91332.0,91331.0,0.12827]
[1765168613530,0.51829518,91332.0,91331.0,0.12827]
[1765168613727,0.51829518,91332.0,91331.0,0.1392194]
[1765168614026,0.51829518,91332.0,91331.0,0.0109494]
[1765168614224,0.03262,91329.0,91327.0,0.0645498]
[1765168614431,0.13276,91328.0,91327.0,0.0645498]
[1765168614632,0.13276,91328.0,91327.0,0.1392198]
[1765168615522,0.15776,91328.0,91327.0,0.1402198]
[1765168616022,0.15776,91328.0,91327.0,0.0655498]
[1765168616422,0.15776,91328.0,91327.0,0.1402198]
[1765168617227,0.15976,91328.0,91327.0,0.1402198]
[1765168618225,0.15976,91328.0,91327.0,0.12927]
[1765168618427,0.15976,91328.0,91327.0,0.001]
[1765168618821,0.15976,91328.0,91327.0,0.1501]
[1765168620728,0.15976,91328.0,91327.0,0.001]
[1765168620930,0.027,91328.0,91327.0,0.1501]
[1765168621126,0.17599,91328.0,91327.0,0.1501]
[1765168621325,0.53679,91328.0,91327.0,0.1501]
[1765168622033,0.027,91328.0,91327.0,0.1501]
[1765168622535,0.17599,91328.0,91327.0,0.1501]
[1765168624326,0.09921,91328.0,91327.0,0.1501]
[1765168625534,0.17599,91328.0,91327.0,0.1501]
[1765168628438,0.17599,91328.0,91327.0,0.001]
[1765168628740,0.17599,91328.0,91327.0,0.1501]
[1765168633233,0.1869397,91328.0,91327.0,0.001]
[1765168633433,0.17599,91328.0,91327.0,0.001]
[1765168633730,0.17599,91328.0,91327.0,0.0854898]
[1765168633937,0.17599,91328.0,91327.0,0.1585198]
[1765168634736,0.09921,91328.0,91327.0,0.1585198]
[1765168635136,0.17212,91328.0,91327.0,0.1585198]
[1765168635644,0.027,91328.0,91327.0,0.1585198]
[1765168635835,0.19057,91357.0,91356.0,0.07354]
[1765168636041,0.14733,91352.0,91351.0,0.1575169]
[1765168636838,0.19057,91343.0,91342.0,0.58024467]
[1765168637039,0.2015179,91343.0,91342.0,0.50900418]
[1765168638131,0.2015179,91343.0,91342.0,0.00016418]
[1765168638336,0.2015179,91343.0,91342.0,0.00116418]
[1765168638337,0.2065179,91343.0,91342.0,0.00116418]
[1765168639158,0.14733,91328.0,91320.0,0.14950847]
[1765168639342,0.14733,91321.0,91320.0,0.28905098]
[1765168639642,0.14733,91321.0,91320.0,0.14657]
[1765168640447,0.14733,91322.0,91321.0,0.1575206]
[1765168641052,0.14733,91322.0,91321.0,0.14657]
[1765168642049,0.14833,91322.0,91321.0,0.14657]
[1765168642249,0.14833,91322.0,91321.0,0.16057]
[1765168643550,0.19157,91322.0,91321.0,0.16057]
[1765168644252,0.19157,91322.0,91321.0,0.08754]
[1765168644452,0.19157,91322.0,91321.0,0.16057]
[1765168645650,0.19157,91322.0,91321.0,0.014]
[1765168648645,0.14733,91309.0,91308.0,0.3608]
[1765168648844,0.14733,91300.0,91299.0,0.23579118]
[1765168649146,0.14733,91300.0,91299.0,0.5183232]
[1765168649650,0.14733,91300.0,91299.0,0.53108079]
[1765168649848,0.14733,91300.0,91299.0,0.55408079]
[1765168650151,0.14733,91300.0,91299.0,0.48105079]
[1765168650347,0.14733,91300.0,91299.0,0.54312759]
[1765168650544,0.14833,91300.0,91299.0,0.3868]
[1765168651148,0.14833,91300.0,91299.0,0.026]
[1765168654154,0.14833,91300.0,91299.0,0.09954]
[1765168654341,0.14833,91300.0,91299.0,0.026]
[1765168655558,0.14833,91300.0,91299.0,0.09954]
[1765168656058,0.14833,91300.0,91299.0,0.17257]
[1765168659251,0.001,91300.0,91299.0,0.17257]
[1765168659648,0.001,91300.0,91299.0,0.53337]
[1765168663256,0.15652,91300.0,91299.0,0.53337]
[1765168663855,0.15652,91300.0,91299.0,1.04233]
[1765168665365,0.15652,91300.0,91299.0,0.53337]
[1765168665554,0.15652,91300.0,91299.0,0.3868]
[1765168665861,0.15652,91300.0,91299.0,0.45396]
[1765168666059,0.15652,91300.0,91299.0,0.3868]
[1765168666360,0.15652,91300.0,91299.0,0.45396]
[1765168667160,0.15652,91300.0,91299.0,0.53524]
[1765168674658,0.001,91300.0,91299.0,0.53524]
[1765168676762,0.15491,91300.0,91299.0,0.53524]
[1765168679668,0.15491,91300.0,91299.0,0.45396]
[1765168679871,0.15491,91300.0,91299.0,0.3868]
[1765168680066,0.15491,91300.0,91299.0,0.46357]
[1765168680673,0.15491,91300.0,91299.0,0.10277]
[1765168681173,0.15491,91300.0,91299.0,0.17964]
[1765168681362,0.001,91300.0,91299.0,0.54044]
[1765168681964,0.00016428,91309.0,91308.0,0.1881421]
[1765168682167,0.3608,91336.0,91335.0,0.15364]
[1765168682370,0.08143,91337.0,91336.0,0.15364]
[1765168682669,0.15796,91337.0,91336.0,0.15364]
[1765168683571,0.15896,91337.0,91336.0,0.15364]
[1765168683977,0.16396,91337.0,91336.0,0.15464]
[1765168684377,0.16396,91337.0,91336.0,0.001]
[1765168685687,0.16396,91337.0,91327.0,0.00016428]
[1765168685688,0.1689097,91328.0,91327.0,0.00016428]
[1765168686187,0.5297097,91328.0,91327.0,0.00016428]
[1765168686782,0.5317097,91328.0,91327.0,0.00016428]
[1765168689002,0.56798,91328.0,91327.0,0.07693428]
[1765168689292,0.56798,91328.0,91327.0,0.00016428]
[1765168692490,0.20718,91328.0,91327.0,0.00016428]
[1765168693593,0.56798,91328.0,91327.0,0.00016428]
[1765168694086,0.52076,91328.0,91327.0,0.15744428]
[1765168694290,0.15996,91328.0,91327.0,0.15744428]
[1765168694694,0.20883,91328.0,91327.0,0.15744428]
[1765168695093,0.20883,91328.0,91327.0,0.00016428]
[1765168695295,0.56863,91328.0,91327.0,0.00016428]
[1765168695494,0.56863,91328.0,91327.0,0.00416428]
[1765168695896,0.20783,91328.0,91327.0,0.16144428]
[1765168696095,0.20783,91328.0,91327.0,0.15944428]
[1765168697105,0.20439,91328.0,91327.0,0.15944428]
[1765168699203,0.15552,91328.0,91327.0,0.15944428]
[1765168699898,0.001,91328.0,91327.0,0.15944428]
[1765168700603,0.001,91328.0,91327.0,0.52024428]
[1765168703608,0.0837,91328.0,91327.0,0.52024428]
[1765168704109,0.16169,91328.0,91327.0,0.52024428]
[1765168704309,0.21056,91328.0,91327.0,1.02908428]
[1765168704608,0.16169,91328.0,91327.0,1.02908428]
[1765168706505,0.21056,91328.0,91327.0,0.87180428]
[1765168706703,0.21056,91328.0,91327.0,0.51100428]
[1765168707205,0.57136,91328.0,91327.0,0.00216428]
[1765168707510,0.21056,91328.0,91327.0,0.00216428]
[1765168707807,0.57136,91328.0,91327.0,0.00216428]
[1765168709301,0.59588055,91328.0,91327.0,0.00216428]
[1765168711016,0.59588055,91328.0,91327.0,0.15944428]
[1765168711705,0.54701055,91328.0,91327.0,0.15944428]
[1765168711905,0.02552055,91328.0,91327.0,0.15944428]
[1765168712105,0.001,91328.0,91327.0,0.15944428]
[1765168712610,0.001,91328.0,91327.0,0.52024428]
[1765168715210,0.0837,91328.0,91327.0,0.52024428]
[1765168715412,0.21056,91328.0,91327.0,0.15944428]
[1765168715618,0.21056,91328.0,91327.0,0.66828428]
[1765168716011,0.21056,91328.0,91327.0,0.08582428]
[1765168716411,0.21056,91328.0,91327.0,0.15944428]
[1765168717902,0.001,91328.0,91327.0,0.17039408]
[1765168725613,0.15145,91328.0,91327.0,0.17039408]
[1765168725820,0.19537,91328.0,91327.0,0.67919408]
[1765168726011,0.19537,91328.0,91327.0,0.66824428]
[1765168726524,0.19537,91328.0,91327.0,0.08582428]
[1765168726816,0.19537,91328.0,91327.0,0.00216428]
[1765168727028,0.55617,91328.0,91327.0,0.00216428]
[1765168729227,0.55617,91328.0,91308.0,0.3608]
[1765168729228,0.15045,91309.0,91308.0,0.3608]
[1765168729422,0.15045,91309.0,91308.0,0.14509]
[1765168729612,0.3608,91317.0,91316.0,0.14509]
[1765168729613,0.51125,91317.0,91316.0,0.14509]
[1765168729814,0.15045,91313.0,91312.0,0.0109515]
[1765168730022,0.19437,91312.0,91303.0,0.13358955]
[1765168730409,0.04392,91304.0,91303.0,0.14454225]
[1765168730612,0.04392,91304.0,91303.0,0.0109527]
[1765168731314,0.12111,91304.0,91303.0,0.0229527]
[1765168731613,0.04392,91304.0,91303.0,0.0229527]
[1765168731818,0.19437,91312.0,91308.0,0.010952]
[1765168732213,0.19437,91312.0,91308.0,0.371752]
[1765168733021,0.04392,91312.0,91308.0,0.371752]
[1765168733319,0.04392,91312.0,91308.0,0.373752]
[1765168733516,0.12111,91312.0,91308.0,0.373752]
[1765168733717,0.19437,91312.0,91308.0,0.373752]
[1765168733920,0.15061428,91317.0,91316.0,0.0109512]
[1765168734118,0.15045,91316.0,91315.0,0.5088]
[1765168735616,0.15045,91309.0,91308.0,0.3608]
[1765168735816,0.15045,91309.0,91308.0,0.8696]
[1765168736123,0.15045,91309.0,91308.0,0.86964]
[1765168736717,0.15045,91309.0,91308.0,0.94446]
[1765168736920,0.15045,91309.0,91308.0,1.02128]
[1765168737422,0.15045,91309.0,91308.0,1.02928]
[1765168738417,0.15045,91309.0,91308.0,0.95446]
[1765168738823,0.15045,91309.0,91308.0,1.02928]
[1765168739023,0.15045,91309.0,91308.0,0.52044]
[1765168739228,0.15045,91309.0,91308.0,1.02928]
[1765168742724,0.00016428,91317.0,91316.0,0.14964]
[1765168742725,0.18737428,91317.0,91316.0,0.14964]
[1765168743925,0.18737428,91317.0,91316.0,0.15464]
[1765168744322,0.09247428,91317.0,91316.0,0.15464]
[1765168744519,0.00016428,91317.0,91316.0,0.15464]
[1765168745216,0.09247428,91317.0,91316.0,0.15464]
[1765168745426,0.00016428,91317.0,91316.0,0.15564]
[1765168745622,0.23113,91336.0,91335.0,0.14964]
[1765168746521,0.23113,91336.0,91335.0,0.07482]
[1765168746831,0.23413,91336.0,91335.0,0.14964]
[1765168747025,0.23613,91336.0,91335.0,0.14964]
[1765168747324,0.23613,91336.0,91335.0,0.07482]
[1765168747625,0.18721,91327.0,91326.0,0.00016428]
[1765168748727,0.18721,91327.0,91326.0,0.07498428]
[1765168749325,0.18721,91327.0,91326.0,0.07598428]
[1765168750028,0.18721,91327.0,91326.0,0.07998428]
[1765168750424,0.18721,91327.0,91326.0,0.00516428]
[1765168755136,0.21215772,91327.0,91326.0,0.00516428]
[1765168756236,0.18498,91311.0,91310.0,0.14249296]
[1765168756433,0.24068,91308.0,91307.0,0.0109522]
[1765168756637,0.24068,91308.0,91307.0,0.0712822]
[1765168756942,0.24068,91308.0,91307.0,0.1316122]
[1765168758438,0.24168,91308.0,91307.0,0.1346122]
[1765168758737,0.24168,91308.0,91307.0,0.1446122]
[1765168762236,0.001,91308.0,91307.0,0.1446122]
[1765168764950,0.24168,91308.0,91307.0,0.013]
[1765168765145,0.60248,91308.0,91307.0,0.013]
[1765168766139,0.18498,91299.0,91298.0,0.07124648]
[1765168766344,0.18498,91292.0,91291.0,0.66831891]
[1765168766842,0.18498,91292.0,91291.0,0.01281891]
[1765168767031,0.0557,91294.0,91280.0,0.07124648]
[1765168767032,0.18498,91281.0,91280.0,0.07124648]
[1765168767232,0.18498,91277.0,91276.0,0.157616]
[1765168767844,0.54578,91277.0,91276.0,0.14666]
[1765168768039,0.54578,91277.0,91276.0,0.15912434]
[1765168768441,0.18498,91277.0,91276.0,0.17008034]
[1765168768946,0.18498,91277.0,91276.0,0.18008034]
[1765168769145,0.18498,91277.0,91276.0,0.16912434]
[1765168769649,0.18498,91277.0,91276.0,0.18008034]
[1765168769849,0.18598,91277.0,91276.0,0.18508034]
[1765168770642,0.18598,91277.0,91276.0,0.17412434]
[1765168772844,0.54678,91277.0,91276.0,0.17412434]
[1765168773147,0.18598,91277.0,91276.0,0.17412434]
[1765168773346,0.54678,91277.0,91276.0,0.17412434]
[1765168776749,0.18598,91277.0,91276.0,0.17412434]
[1765168777048,0.54678,91277.0,91276.0,0.17412434]
[1765168779960,0.5577358,91277.0,91276.0,0.10079434]
[1765168780149,0.5577358,91277.0,91276.0,0.02746434]
[1765168781756,0.5567358,91277.0,91276.0,0.02246434]
[1765168781958,0.5577358,91277.0,91276.0,0.02646434]
[1765168782854,0.5577358,91277.0,91276.0,0.01646434]
[1765168783060,0.5577358,91277.0,91276.0,0.01846434]
[1765168784257,0.54678,91277.0,91276.0,0.01846434]
[1765168785661,0.54678,91277.0,91276.0,0.006]
[1765168786660,0.1967,91275.0,91272.0,0.01202789]
[1765168786849,0.24822,91260.0,91259.0,0.2128779]
[1765168787862,0.24829789,91260.0,91259.0,0.2128779]
[1765168788757,0.24829789,91260.0,91259.0,0.21382838]
[1765168788958,0.25729789,91260.0,91259.0,0.21382838]
[1765168789154,0.25829789,91260.0,91259.0,0.21382838]
[1765168790359,0.25829789,91260.0,91259.0,0.22478638]
[1765168790757,0.25829789,91260.0,91259.0,0.22578638]
[1765168791953,0.25929789,91260.0,91259.0,0.22578638]
[1765168792560,0.25829789,91260.0,91259.0,0.22578638]
[1765168792755,0.25829789,91260.0,91259.0,0.21482838]
[1765168793157,0.24929789,91260.0,91259.0,0.21482838]
[1765168793357,0.25929789,91260.0,91259.0,0.21482838]
[1765168793766,0.25829789,91260.0,91259.0,0.21382838]
[1765168793969,0.25929789,91260.0,91259.0,0.21382838]
[1765168794766,0.25829789,91260.0,91259.0,0.21482838]
[1765168795469,0.25829789,91260.0,91259.0,0.21382838]
[1765168795769,0.24929789,91260.0,91259.0,0.21382838]
[1765168795969,0.25729789,91260.0,91259.0,0.21382838]
[1765168796370,0.24929789,91260.0,91259.0,0.21382838]
[1765168796562,0.25729789,91260.0,91259.0,0.21382838]
[1765168796763,0.25729789,91260.0,91259.0,0.01190838]
[1765168796963,0.24822,91248.0,91247.0,0.0942]
[1765168797163,0.24822,91248.0,91247.0,0.20192]
[1765168798069,0.1967,91248.0,91247.0,0.20192]
[1765168798368,0.1967,91248.0,91247.0,0.21396122]
[1765168798667,0.25522,91248.0,91247.0,0.21496122]
[1765168799274,0.24822,91248.0,91247.0,0.21496122]
[1765168799469,0.25422,91248.0,91247.0,0.21496122]
[1765168799972,0.25522,91248.0,91247.0,0.21496122]
[1765168800666,0.25522,91248.0,91247.0,0.21396122]
[1765168800871,0.25622,91248.0,91247.0,0.21496122]
[1765168801574,0.25522,91248.0,91247.0,0.21496122]
[1765168801973,0.24822,91248.0,91247.0,0.21496122]
[1765168802171,0.25522,91248.0,91247.0,0.21496122]
[1765168804380,0.007,91248.0,91247.0,0.21496122]
[1765168804678,0.19677789,91260.0,91259.0,0.20192]
[1765168804869,7.789e-05,91260.0,91259.0,0.212878]
[1765168805271,0.19677789,91260.0,91259.0,0.212878]
[1765168805465,0.24829789,91260.0,91259.0,0.212878]
[1765168805675,7.789e-05,91260.0,91259.0,0.212878]
[1765168806177,0.09746789,91260.0,91259.0,0.212878]
[1765168806377,0.01107789,91260.0,91259.0,0.212878]
[1765168807080,0.01307789,91260.0,91259.0,0.213878]
[1765168807467,0.00207789,91260.0,91259.0,0.213878]
[1765168807672,0.05152,91278.0,91268.0,0.2079469]
[1765168807882,0.05152,91278.0,91268.0,0.7170269]
[1765168808670,0.00022013,91269.0,91268.0,0.7170269]
[1765168808879,0.00122013,91269.0,91268.0,0.7170269]
[1765168810176,0.21401013,91269.0,91268.0,0.7190269]
[1765168810777,0.21301013,91269.0,91268.0,0.7189869]
[1765168810976,0.21301013,91269.0,91268.0,0.7199869]
[1765168811373,0.21201013,91269.0,91268.0,0.7169869]
[1765168811573,0.21301013,91269.0,91268.0,0.7189869]
[1765168811877,0.21301013,91269.0,91268.0,0.70803]
[1765168812178,0.21301013,91269.0,91268.0,0.002]
[1765168812381,0.21301013,91269.0,91250.0,0.09511794]
[1765168812382,0.20128,91265.0,91264.0,0.50904]
[1765168812573,0.20128,91251.0,91250.0,0.09511794]
[1765168812768,0.20128,91251.0,91250.0,0.50904]
[1765168813176,0.20128,91248.0,91247.0,0.01204122]
[1765168813484,0.20128,91248.0,91247.0,0.50904]
[1765168814183,0.20128,91248.0,91247.0,0.61539]
[1765168814382,0.20228,91248.0,91247.0,0.61639]
[1765168814685,0.20228,91248.0,91247.0,0.71135]
[1765168815185,0.20328,91248.0,91247.0,0.71135]
[1765168818284,0.20328,91248.0,91247.0,0.61639]
[1765168818478,0.20328,91248.0,91247.0,0.71135]
[1765168824290,0.2633,91248.0,91247.0,0.71135]
[1765168826193,0.2633,91248.0,91247.0,0.51004]
[1765168827298,0.2633,91248.0,91247.0,0.61639]
[1765168827495,0.2633,91248.0,91247.0,0.71135]
[1765168828195,0.2633,91248.0,91247.0,0.51004]
[1765168828993,0.2633,91248.0,91247.0,0.001]
[1765168830298,0.6241,91248.0,91247.0,0.001]
[1765168830505,0.2122394,91247.0,91246.0,3.99e-06]
[1765168830700,0.2122405,91238.0,91237.0,0.50908]
[1765168830908,0.5730405,91238.0,91237.0,0.50908]
[1765168831206,0.56208,91238.0,91237.0,0.50908]
[1765168831506,0.56208,91238.0,91237.0,0.72254598]
[1765168833207,0.56208,91238.0,91237.0,0.002]
[1765168833208,0.56308,91238.0,91237.0,0.002]
[1765168833506,0.2122412,91232.0,91231.0,0.01203363]
[1765168833700,0.20128,91225.0,91222.0,0.0109624]
[1765168833900,0.20128,91225.0,91224.0,0.56221173]
[1765168834101,0.20128,91225.0,91224.0,0.57391086]
[1765168835511,0.20228,91225.0,91224.0,0.48295086]
[1765168835810,0.20228,91225.0,91224.0,0.02280086]
[1765168836113,0.20228,91225.0,91224.0,0.23507306]
[1765168836302,0.10184,91225.0,91224.0,0.23507306]
[1765168836604,0.001,91225.0,91224.0,0.23507306]
[1765168837502,0.20228,91225.0,91224.0,0.23507306]
[1765168838704,0.20228,91225.0,91224.0,0.12915086]
[1765168838907,0.20228,91225.0,91224.0,0.02280086]
[1765168839297,0.20228,91225.0,91224.0,0.22411086]
[1765168841707,0.20228,91225.0,91224.0,0.02280086]
[1765168842212,0.20228,91225.0,91224.0,0.19224086]
[1765168842506,0.20228,91225.0,91224.0,0.10752086]
[1765168842709,0.20228,91225.0,91224.0,0.02280086]
[1765168842908,0.20228,91225.0,91224.0,0.01110173]
[1765168843115,0.20233585,91225.0,91224.0,0.01110173]
[1765168847518,0.20233585,91225.0,91224.0,0.01010173]
[1765168848017,0.20233585,91225.0,91224.0,0.00710173]
[1765168853911,0.20233585,91225.0,91204.0,0.0109646]
[1765168853912,0.17898,91207.0,91204.0,0.0109646]
[1765168854512,0.17898,91207.0,91206.0,0.08549411]
[1765168854708,0.17898,91207.0,91206.0,0.17071411]
[1765168855019,0.17898,91207.0,91206.0,0.18282278]
[1765168855220,0.17898,91207.0,91206.0,0.19182278]
[1765168856814,0.001,91207.0,91206.0,0.19282278]
[1765168857019,0.09143,91207.0,91206.0,0.19282278]
[1765168857222,0.17998,91207.0,91206.0,0.19282278]
[1765168860622,0.17998,91207.0,91206.0,0.02238278]
[1765168860920,0.17998,91207.0,91206.0,0.01027411]
[1765168861420,0.17998,91207.0,91206.0,4.11e-06]
[1765168861620,0.23378,91194.0,91193.0,0.47076]
[1765168861817,0.59469088,91194.0,91193.0,0.48260015]
[1765168862012,0.59469088,91194.0,91193.0,0.57447015]
[1765168862213,0.59469088,91194.0,91193.0,0.49356605]
[1765168862413,0.59469088,91194.0,91193.0,0.67264605]
[1765168862818,0.59469088,91194.0,91193.0,0.20188605]
[1765168863221,0.59569088,91194.0,91193.0,0.20188605]
[1765168863422,0.59569088,91194.0,91193.0,0.02280605]
[1765168863818,0.59569088,91194.0,91193.0,0.10986605]
[1765168864025,0.59569088,91194.0,91193.0,0.19592605]
[1765168864418,0.59569088,91194.0,91193.0,0.10986605]
[1765168864818,0.59869088,91194.0,91193.0,0.19492605]
[1765168865521,0.00311088,91194.0,91193.0,0.19492605]
[1765168865820,0.00411088,91194.0,91193.0,0.19492605]
[1765168866024,0.00411088,91194.0,91193.0,1.54334125]
[1765168866212,0.00411088,91194.0,91193.0,1.14349696]
[1765168867722,0.00411088,91194.0,91193.0,1.06500605]
[1765168868115,0.00411088,91194.0,91193.0,1.14349696]
[1765168869224,0.00411088,91194.0,91193.0,1.06500605]
[1765168869529,0.00411088,91194.0,91193.0,1.14350242]
[1765168870227,0.00411088,91194.0,91193.0,1.06500605]
[1765168873421,0.09109088,91194.0,91193.0,1.06500605]
[1765168873725,0.00411088,91194.0,91193.0,1.06500605]
[1765168880828,0.53281,91212.0,91211.0,0.1688638]
[1765168881026,0.53281,91212.0,91211.0,0.6781838]
[1765168881227,0.44778,91212.0,91211.0,0.6781838]
[1765168881427,0.3608,91212.0,91211.0,0.6781838]
[1765168881622,0.00016446,91216.0,91211.0,0.6781838]
[1765168881925,0.00016446,91216.0,91215.0,0.1688633]
[1765168882434,0.00021116,91216.0,91215.0,0.1688633]
[1765168883126,0.00021116,91216.0,91215.0,0.5296633]
[1765168883433,0.22409,91230.0,91229.0,0.1688616]
[1765168883625,0.22409,91230.0,91229.0,0.6781416]
[1765168884335,0.3608,91232.0,91231.0,0.1579]
[1765168884831,0.22409,91236.0,91235.0,0.1579]
[1765168885036,0.08698,91236.0,91235.0,0.1579]
[1765168885236,0.08714446,91239.0,91238.0,0.1579]
[1765168885445,0.17217446,91239.0,91238.0,0.66718]
[1765168886321,0.19017446,91239.0,91238.0,0.66718]
[1765168886924,0.18417446,91239.0,91238.0,0.66718]
[1765168887727,0.18417446,91239.0,91236.0,0.0109608]
[1765168887928,0.17201,91233.0,91232.0,0.0109612]
[1765168888230,0.17201,91224.0,91223.0,0.07895]
[1765168888422,0.17201,91221.0,91220.0,0.07911446]
[1765168888628,0.17201,91221.0,91220.0,0.58835446]
[1765168889331,0.17201,91221.0,91220.0,0.66730446]
[1765168889726,0.17801,91221.0,91220.0,0.66730446]
[1765168890327,0.17201,91221.0,91220.0,0.66730446]
[1765168890533,0.18601,91221.0,91220.0,0.66730446]
[1765168891135,0.18501,91221.0,91220.0,0.66730446]
[1765168891337,0.18601,91221.0,91220.0,0.66730446]
[1765168892940,0.18601,91221.0,91220.0,0.07911446]
[1765168893235,0.18601,91221.0,91220.0,0.50936446]
[1765168893626,0.18601,91221.0,91220.0,0.58831446]
[1765168894141,0.18601,91221.0,91220.0,0.66726446]
[1765168895349,0.10098,91221.0,91220.0,0.66726446]
[1765168895533,0.014,91221.0,91220.0,0.66726446]
[1765168896231,0.22409,91238.0,91237.0,0.1688606]
[1765168896631,0.3608,91253.0,91238.0,0.1579]
[1765168897233,0.08714446,91239.0,91238.0,0.1579]
[1765168897537,0.17217446,91239.0,91238.0,0.1579]
[1765168897739,0.00016446,91239.0,91238.0,0.1579]
[1765168897935,0.17217446,91239.0,91238.0,0.1579]
[1765168899142,0.17717446,91239.0,91238.0,0.1589]
[1765168899538,0.17417446,91239.0,91238.0,0.66806]
[1765168899840,0.17217446,91239.0,91238.0,0.66706]
[1765168900037,0.17317446,91239.0,91238.0,0.66806]